bitfinex-derivatives/quotes_SOLF0:USTF0_20241224
["timestamp","ask_amount","ask_price","bid_price","bid_amount"]
[1735029450699,10.86807653,192.84,192.79,2.5971]
[1735029451708,8.27147653,192.8,192.66,55.9951088]
[1735029451898,8.27147653,192.8,192.73,56.44646261]
[1735029452102,8.27147653,192.78,192.71,8.27147653]
[1735029453007,8.27147653,192.76,192.71,8.27147653]
[1735029454008,8.27147653,192.76,192.73,2.598]
[1735029454208,2.5972,192.79,192.71,8.27147653]
[1735029454405,8.27147653,192.8,192.73,8.27147653]
[1735029455016,2.5969,192.81,192.76,2.5976]
[1735029455210,10.86837653,192.81,192.76,2.5976]
[1735029456310,8.27147653,192.79,192.76,2.5976]
[1735029457912,10.86837653,192.81,192.76,2.5976]
[1735029458712,8.27147653,192.79,192.76,2.5976]
[1735029460913,8.27147653,192.79,192.75,2.5977]
[1735029461314,8.27147653,192.79,192.73,8.27147653]
[1735029461514,8.27147653,192.79,192.71,8.27147653]
[1735029462413,2.5974,192.78,192.73,2.5979]
[1735029462714,8.27147653,192.79,192.71,8.27147653]
[1735029463019,8.27147653,192.79,192.73,8.27147653]
[1735029464413,10.86867653,192.79,192.75,2.5977]
[1735029465013,2.5973,192.78,192.73,2.598]
[1735029465509,8.27147653,192.77,192.73,2.598]
[1735029474022,8.27147653,192.77,192.71,8.27147653]
[1735029474221,2.5973,192.78,192.74,2.5979]
[1735029474422,10.86877653,192.78,192.74,2.5979]
[1735029475611,2.5973,192.78,192.74,2.5979]
[1735029476020,10.86877653,192.78,192.74,2.5979]
[1735029478020,2.5975,192.77,192.73,2.598]
[1735029478220,2.5975,192.77,192.71,8.27147653]
[1735029478421,10.86887653,192.78,192.73,2.598]
[1735029479619,10.86887653,192.78,192.74,2.5978]
[1735029484227,2.5976,192.77,192.72,2.598]
[1735029484429,8.27147653,192.76,192.7,8.27147653]
[1735029484726,8.27147653,192.74,192.7,2.5983]
[1735029485530,8.27147653,192.74,192.71,2.5982]
[1735029485730,3.24,192.77,192.7,8.27147653]
[1735029485934,11.51147653,192.77,192.7,8.27147653]
[1735029486137,8.27147653,192.77,192.74,2.5978]
[1735029486837,10.38196427,192.8,192.72,8.27147653]
[1735029486838,8.27147653,192.79,192.72,8.27147653]
[1735029487830,1.4852,192.83,192.74,8.27147653]
[1735029488031,8.27147653,192.82,192.74,8.27147653]
[1735029488235,8.27147653,192.82,192.76,8.27147653]
[1735029489238,8.27147653,192.82,192.78,2.5972]
[1735029490229,8.27147653,192.8,192.77,2.5974]
[1735029495048,8.27147653,192.81,192.77,2.5974]
[1735029496147,8.27147653,192.79,192.75,2.5976]
[1735029496548,8.27147653,192.77,192.71,8.27147653]
[1735029496749,8.27147653,192.77,192.73,2.5979]
[1735029497954,1.4852,192.83,192.73,8.27147653]
[1735029498147,10.86837653,192.81,192.73,8.27147653]
[1735029499554,10.86837653,192.81,192.77,2.5973]
[1735029499749,2.5969,192.81,192.77,2.5973]
[1735029500056,10.86837653,192.81,192.77,2.5973]
[1735029501552,2.5969,192.81,192.77,2.5973]
[1735029501942,8.27147653,192.8,192.77,2.5973]
[1735029503855,2.5969,192.81,192.77,2.5973]
[1735029504156,15.4134408,192.86,192.77,8.27147653]
[1735029505460,2.5965,192.85,192.81,2.5969]
[1735029509661,8.27147653,192.84,192.81,2.5969]
[1735029510360,8.27147653,192.84,192.8,2.597]
[1735029510361,10.86797653,192.84,192.8,2.597]
[1735029512362,8.27147653,192.84,192.78,2.5972]
[1735029512565,8.27147653,192.82,192.78,2.5972]
[1735029512757,1.5056,192.89,192.81,8.27147653]
[1735029512957,10.86787653,192.86,192.8,2.597]
[1735029513160,8.27147653,192.84,192.79,8.27147653]
[1735029513556,8.27147653,192.82,192.78,2.5973]
[1735029514162,10.86827653,192.82,192.78,2.5973]
[1735029514558,2.5971,192.8,192.75,2.5977]
[1735029514966,8.27147653,192.8,192.75,2.5977]
[1735029515158,2.5973,192.78,192.73,2.5979]
[1735029515362,8.27147653,192.78,192.73,2.5979]
[1735029515861,2.5975,192.77,192.72,8.27147653]
[1735029517959,2.5977,192.76,192.71,2.5981]
[1735029518169,8.27147653,192.76,192.69,2.5985]
[1735029518460,2.5982,192.72,192.67,48.19367026]
[1735029518768,8.27147653,192.7,192.6,2.9663]
[1735029518967,8.27147653,192.7,192.62,8.27147653]
[1735029518968,10.86997653,192.7,192.62,8.27147653]
[1735029519167,9.18575927,192.84,192.69,8.27147653]
[1735029519367,8.27147653,192.8,192.73,8.27147653]
[1735029520261,8.27147653,192.8,192.73,10.86937653]
[1735029520966,8.27147653,192.8,192.64,1.4759]
[1735029520967,4.6508,192.83,192.75,8.27147653]
[1735029521168,2.5969,192.82,192.75,10.86907653]
[1735029521369,2.5969,192.82,192.75,8.27147653]
[1735029522468,1.536,192.83,192.77,8.27147653]
[1735029522766,8.27147653,192.85,192.77,8.27147653]
[1735029523570,8.27147653,192.85,192.8,2.597]
[1735029528274,8.27147653,192.85,192.81,2.5969]
[1735029528466,4.5861,192.88,192.79,8.27147653]
[1735029528673,4.5861,192.88,192.81,8.27147653]
[1735029528873,3.0626,192.88,192.81,8.27147653]
[1735029529074,8.27147653,192.89,192.81,8.27147653]
[1735029529671,8.27147653,192.89,192.85,2.5963]
[1735029529970,10.02870645,192.9,192.83,8.27147653]
[1735029530277,10.02870645,192.9,192.85,2.5964]
[1735029530872,10.86727653,192.9,192.85,2.5964]
[1735029531475,2.5958,192.9,192.85,2.5964]
[1735029531676,10.86727653,192.9,192.85,2.5964]
[1735029532475,8.27147653,192.91,192.86,2.5962]
[1735029533777,8.27147653,192.91,192.83,8.27147653]
[1735029533778,8.27147653,192.91,192.87,2.5961]
[1735029538374,8.27147653,192.89,192.87,2.5961]
[1735029538580,8.27147653,192.89,192.85,2.5963]
[1735029538775,8.27147653,192.87,192.85,2.5963]
[1735029539774,8.27147653,192.87,192.82,2.5967]
[1735029539971,8.27147653,192.85,192.82,2.5967]
[1735029541483,2.5961,192.87,192.82,2.5967]
[1735029541674,10.86757653,192.87,192.82,2.5967]
[1735029542784,10.86757653,192.87,192.83,2.5966]
[1735029544882,8.27147653,192.87,192.83,2.5966]
[1735029546777,8.27147653,192.85,192.71,1.494]
[1735029546982,8.27147653,192.85,192.77,8.27147653]
[1735029548478,8.27147653,192.85,192.81,2.5968]
[1735029548880,8.27147653,192.83,192.81,2.5968]
[1735029550683,8.27147653,192.83,192.79,2.5971]
[1735029553287,2.5965,192.84,192.8,2.597]
[1735029553790,7.2337,192.86,192.81,2.5969]
[1735029553989,8.27147653,192.85,192.81,2.5969]
[1735029554684,10.86787653,192.85,192.81,2.5969]
[1735029554879,8.27147653,192.85,192.77,8.27147653]
[1735029555085,8.27147653,192.85,192.8,2.597]
[1735029555382,8.27147653,192.83,192.8,2.597]
[1735029558785,8.27147653,192.83,192.79,2.5972]
[1735029560986,2.5971,192.8,192.75,2.5976]
[1735029561187,8.27147653,192.79,192.75,2.5976]
[1735029562294,10.86867653,192.79,192.75,2.5976]
[1735029567998,8.27147653,192.79,192.73,8.27147653]
[1735029568199,10.86847653,192.81,192.76,2.5975]
[1735029569097,2.5971,192.8,192.76,2.5975]
[1735029572802,8.27147653,192.79,192.73,8.27147653]
[1735029573192,10.86867653,192.79,192.75,2.5977]
[1735029573893,33.34273708,192.86,192.73,8.27147653]
[1735029574100,8.27147653,192.81,192.73,8.27147653]
[1735029574289,31.84203708,192.86,192.79,8.27147653]
[1735029574489,28.70543708,192.86,192.85,8.27147653]
[1735029574702,7.14196427,192.86,192.85,8.27147653]
[1735029575498,7.14196427,192.86,192.85,10.86787653]
[1735029575699,146.97288547,192.91,192.85,10.86787653]
[1735029575700,4.1336,192.91,192.85,10.86787653]
[1735029576596,8.27147653,192.9,192.85,2.5964]
[1735029577401,8.27147653,192.9,192.83,8.27147653]
[1735029577599,8.27147653,192.9,192.86,2.5961]
[1735029578299,30.18923708,192.96,192.87,8.27147653]
[1735029578603,28.70543708,192.96,192.91,8.27147653]
[1735029578810,36.97691361,192.97,192.91,8.27147653]
[1735029579699,8.27147653,192.97,192.93,2.5953]
[1735029580401,8.27147653,192.97,192.91,10.86687653]
[1735029582105,2.5949,192.96,192.91,2.5954]
[1735029582299,8.27147653,192.95,192.89,10.86727653]
[1735029582695,8.27147653,192.95,192.89,2.5958]
[1735029583203,2.9743,192.99,192.89,2.5958]
[1735029583406,8.27147653,192.94,192.89,2.5958]
[1735029583604,2.5951,192.95,192.89,2.5958]
[1735029583804,8.27147653,192.94,192.89,2.5958]
[1735029588604,8.27147653,192.94,192.87,8.27147653]
[1735029588803,8.27147653,192.94,192.9,2.5956]
[1735029591510,2.5953,192.93,192.88,2.5958]
[1735029593816,8.27147653,192.92,192.88,2.5958]
[1735029594016,8.27147653,192.9,192.82,8.27147653]
[1735029594216,8.27147653,192.86,192.76,3.0797]
[1735029594511,8.27147653,192.86,192.8,8.27147653]
[1735029595317,8.27147653,192.86,192.82,2.5967]
[1735029597014,2.5961,192.87,192.82,2.5967]
[1735029597217,10.86777653,192.86,192.8,2.5969]
[1735029597406,8.27147653,192.84,192.8,2.5969]
[1735029600318,2.5965,192.85,192.8,2.5969]
[1735029600513,8.27147653,192.89,192.82,8.27147653]
[1735029600817,8.27147653,192.93,192.86,8.27147653]
[1735029601412,2.5955,192.92,192.87,2.596]
[1735029602323,8.27147653,192.91,192.87,2.596]
[1735029604519,10.86707653,192.91,192.86,2.5962]
[1735029605023,8.27147653,192.91,192.86,2.5962]
[1735029605224,2.5957,192.9,192.86,2.5962]
[1735029607524,8.27147653,192.89,192.76,3.0797]
[1735029607827,8.27147653,192.89,192.82,8.27147653]
[1735029609128,2.596,192.88,192.83,2.5966]
[1735029609925,8.27147653,192.91,192.83,8.27147653]
[1735029610122,4.113,192.94,192.89,2.5957]
[1735029610428,28.70543708,192.95,192.89,8.27147653]
[1735029610729,31.30053708,192.95,192.91,2.5956]
[1735029611229,2.5951,192.95,192.91,2.5956]
[1735029612928,2.5951,192.95,192.9,2.5957]
[1735029615229,2.5956,192.91,192.87,2.5961]
[1735029615533,2.9743,192.99,192.76,3.0797]
[1735029615534,8.27147653,192.88,192.76,3.0797]
[1735029615831,8.27147653,192.88,192.8,8.27147653]
[1735029616529,2.5962,192.87,192.82,2.5967]
[1735029616926,2.5962,192.86,192.82,2.5967]
[1735029619927,28.70543708,192.95,192.8,2.5969]
[1735029619928,8.27147653,192.84,192.8,2.5969]
[1735029620135,8.27147653,192.82,192.75,8.27147653]
[1735029621029,2.597,192.81,192.75,10.86917653]
[1735029621229,2.597,192.81,192.7,1.5533]
[1735029621230,8.27147653,192.8,192.73,8.27147653]
[1735029622133,8.27147653,192.8,192.71,8.27147653]
[1735029622333,2.5973,192.78,192.73,2.5979]
[1735029622535,2.5973,192.78,192.71,8.27147653]
[1735029623139,2.5973,192.78,192.73,2.598]
[1735029627646,2.5975,192.77,192.71,10.86967653]
[1735029627844,2.5975,192.77,192.71,2.5982]
[1735029632552,2.5977,192.76,192.71,2.5982]
[1735029632843,1.6119,192.79,192.68,2.5986]
[1735029633043,4.2021,192.78,192.72,8.27147653]
[1735029633245,1.6047,192.78,192.72,10.86947653]
[1735029633647,2.5975,192.77,192.72,10.86947653]
[1735029635246,2.5975,192.77,192.73,2.598]
[1735029636047,1.6047,192.78,192.73,2.598]
[1735029636250,4.202,192.78,192.73,2.598]
[1735029636947,2.5977,192.75,192.7,2.5984]
[1735029637251,8.27147653,192.74,192.68,8.27147653]
[1735029637452,8.27147653,192.74,192.66,8.27147653]
[1735029638555,2.598,192.73,192.68,2.5986]
[1735029639254,2.5976,192.76,192.71,2.5982]
[1735029639453,1.6047,192.78,192.72,8.27147653]
[1735029639642,1.6119,192.79,192.72,8.27147653]
[1735029640551,2.5973,192.78,192.73,2.5979]
[1735029642354,2.5973,192.78,192.74,2.5978]
[1735029642555,1.6119,192.79,192.74,8.27147653]
[1735029642957,1.6119,192.79,192.72,8.27147653]
[1735029643461,1.6119,192.79,192.75,2.5977]
[1735029645055,1.6119,192.79,192.72,8.27147653]
[1735029645056,4.2092,192.79,192.74,2.5977]
[1735029646060,1.6119,192.79,192.72,8.27147653]
[1735029646257,1.6119,192.79,192.75,2.5977]
[1735029647668,4.2091,192.79,192.75,2.5977]
[1735029647961,1.6167,192.85,192.78,8.27147653]
[1735029648166,9.88817653,192.85,192.78,8.27147653]
[1735029648366,12.48467653,192.85,192.79,2.5971]
[1735029649960,10.86767653,192.87,192.82,2.5967]
[1735029650865,8.27147653,192.87,192.78,8.27147653]
[1735029651065,8.27147653,192.85,192.76,8.27147653]
[1735029651262,8.27147653,192.85,192.65,55.9951088]
[1735029651263,8.27147653,192.83,192.65,55.9951088]
[1735029651469,8.27147653,192.83,192.74,8.27147653]
[1735029652468,2.597,192.81,192.76,2.5976]
[1735029653271,2.597,192.81,192.76,10.86907653]
[1735029653569,2.597,192.81,192.77,2.5974]
[1735029654567,2.5972,192.79,192.74,2.5978]
[1735029655371,2.5975,192.77,192.72,2.598]
[1735029655969,2.5975,192.77,192.71,8.27147653]
[1735029655970,2.5977,192.75,192.71,2.5982]
[1735029660069,2.5976,192.76,192.71,2.5982]
[1735029661375,8.27147653,192.77,192.69,8.27147653]
[1735029661579,10.86897653,192.77,192.72,2.5981]
[1735029663380,2.5976,192.76,192.72,2.5981]
[1735029663575,2.5976,192.76,192.69,8.27147653]
[1735029663781,2.5976,192.76,192.71,2.5982]
[1735029664383,8.27147653,192.77,192.71,2.5982]
[1735029664582,2.5974,192.76,192.71,2.5982]
[1735029666281,8.27147653,192.77,192.69,8.27147653]
[1735029666574,3.0614,192.81,192.75,8.27147653]
[1735029667081,8.27147653,192.82,192.77,2.5973]
[1735029668478,10.86827653,192.82,192.77,2.5973]
[1735029670481,10.86857653,192.8,192.75,2.5976]
[1735029672983,8.27147653,192.8,192.75,2.5976]
[1735029673275,2.5972,192.79,192.75,2.5976]
[1735029674378,2.5972,192.79,192.73,8.27147653]
[1735029674579,2.5975,192.77,192.64,4.7315]
[1735029674783,8.27147653,192.78,192.64,4.7315]
[1735029674982,8.27147653,192.78,192.71,2.5982]
[1735029676280,2.5976,192.76,192.71,2.5982]
[1735029677580,2.5977,192.75,192.7,2.5984]
[1735029681789,2.5975,192.77,192.72,8.27147653]
[1735029683491,2.5975,192.77,192.73,2.5979]
[1735029688901,2.5975,192.77,192.72,8.27147653]
[1735029689705,2.5975,192.77,192.72,10.86957653]
[1735029690003,1.5881,192.78,192.72,10.86957653]
[1735029690301,2.5976,192.76,192.72,10.86957653]
[1735029690604,2.5968,192.82,192.77,2.5974]
[1735029690806,2.5968,192.82,192.78,8.27147653]
[1735029691197,8.27147653,192.79,192.64,4.7315]
[1735029691702,8.27147653,192.79,192.7,8.27147653]
[1735029692305,2.5978,192.75,192.7,10.86977653]
[1735029692504,2.5978,192.75,192.7,2.5983]
[1735029692705,2.5978,192.75,192.7,10.86977653]
[1735029694606,2.5977,192.75,192.7,8.27147653]
[1735029695307,2.5978,192.74,192.7,10.86977653]
[1735029697312,2.5978,192.74,192.7,2.5983]
[1735029698512,8.27147653,192.75,192.68,8.27147653]
[1735029698811,8.27147653,192.75,192.66,8.27147653]
[1735029700411,2.5981,192.72,192.68,2.5986]
[1735029702409,2.598,192.73,192.68,2.5986]
[1735029704519,2.5975,192.76,192.72,2.5981]
[1735029704817,40.09761361,192.8,192.72,8.27147653]
[1735029705013,38.47781361,192.8,192.74,8.27147653]
[1735029705214,41.07491361,192.8,192.76,2.5975]
[1735029705518,12.36947653,192.8,192.76,2.5975]
[1735029705815,12.36947653,192.8,192.74,8.27147653]
[1735029706016,30.25663708,192.85,192.76,8.27147653]
[1735029706221,8.27147653,192.84,192.76,8.27147653]
[1735029707520,10.86807653,192.84,192.78,2.5972]
[1735029710623,10.86807653,192.84,192.76,8.27147653]
[1735029710921,10.86807653,192.84,192.79,2.5971]
[1735029712720,8.27147653,192.82,192.79,2.5971]
[1735029712922,10.86837653,192.82,192.76,2.5975]
[1735029715314,2.5966,192.84,192.78,2.5971]
[1735029715619,2.5966,192.84,192.78,8.27147653]
[1735029715820,2.5963,192.86,192.82,2.5967]
[1735029716324,11.24977653,192.87,192.82,2.5967]
[1735029717527,13.84587653,192.87,192.82,2.5967]
[1735029720527,5.5744,192.87,192.82,2.5967]
[1735029720727,13.84587653,192.87,192.82,2.5967]
[1735029725833,2.5962,192.86,192.78,8.27147653]
[1735029726033,2.5962,192.86,192.81,2.5968]
[1735029732430,2.5966,192.83,192.65,5.1978]
[1735029732633,8.27147653,192.83,192.76,8.27147653]
[1735029733331,2.5968,192.82,192.75,8.27147653]
[1735029733735,2.5968,192.82,192.77,2.5973]
[1735029734141,8.27147653,192.83,192.65,5.1978]
[1735029734443,2.597,192.8,192.75,8.27147653]
[1735029735543,2.597,192.8,192.76,2.5975]
[1735029736946,2.5969,192.81,192.76,2.5975]
[1735029737245,8.27147653,192.81,192.75,2.5976]
[1735029737440,8.27147653,192.79,192.72,8.27147653]
[1735029737836,8.27147653,192.77,192.7,8.27147653]
[1735029738039,2.5978,192.74,192.68,8.27147653]
[1735029738241,8.27147653,192.75,192.68,8.27147653]
[1735029738642,2.5979,192.73,192.69,2.5984]
[1735029738838,2.5979,192.73,192.66,8.27147653]
[1735029739144,10.86937653,192.73,192.68,2.5986]
[1735029739743,2.5979,192.73,192.69,2.5985]
[1735029740247,2.5978,192.75,192.68,8.27147653]
[1735029740947,2.5978,192.75,192.71,2.5982]
[1735029741243,28.70543708,192.81,192.7,8.27147653]
[1735029741442,36.97691361,192.81,192.74,8.27147653]
[1735029741642,8.27147653,192.81,192.74,8.27147653]
[1735029742446,2.5969,192.81,192.75,2.5975]
[1735029742647,10.86837653,192.81,192.75,2.5975]
[1735029742945,8.27147653,192.81,192.75,2.5975]
[1735029744245,2.597,192.8,192.75,2.5975]
[1735029744748,8.27147653,192.81,192.76,2.5975]
[1735029745046,7.14196427,192.87,192.76,8.27147653]
[1735029745247,10.86777653,192.85,192.8,2.597]
[1735029746548,10.86777653,192.85,192.64,4.7315]
[1735029746549,2.5962,192.86,192.81,2.5969]
[1735029746749,1.4908,192.87,192.8,8.27147653]
[1735029747451,1.4908,192.87,192.83,2.5965]
[1735029750651,9.76227653,192.87,192.83,2.5965]
[1735029752248,2.5962,192.86,192.72,2.598]
[1735029752552,2.5962,192.86,192.78,8.27147653]
[1735029752748,8.27147653,192.85,192.73,3.1192]
[1735029753052,8.27147653,192.85,192.78,8.27147653]
[1735029753453,8.27147653,192.85,192.8,2.5969]
[1735029755054,1.5557,192.89,192.78,8.27147653]
[1735029755249,2.596,192.88,192.83,2.5965]
[1735029755553,3.33342764,192.91,192.86,8.27147653]
[1735029755745,65.40719072,192.93,192.86,8.27147653]
[1735029756151,10.86677653,192.93,192.89,2.5957]
[1735029756347,8.27147653,192.93,192.89,2.5957]
[1735029757050,8.27147653,192.91,192.74,1.5566]
[1735029757355,8.27147653,192.85,192.78,8.27147653]
[1735029757555,8.27147653,192.85,192.8,2.5969]
[1735029758248,8.27147653,192.85,192.74,1.5566]
[1735029758450,8.27147653,192.83,192.78,2.5972]
[1735029760257,2.5966,192.84,192.79,2.5971]
[1735029767370,2.5966,192.84,192.8,2.597]
[1735029768567,2.5961,192.87,192.82,2.5967]
[1735029770370,14.40459464,192.89,192.76,12.93539464]
[1735029770572,17.00049464,192.89,192.83,2.5965]
[1735029770772,17.00049464,192.89,192.76,12.93539464]
[1735029770974,17.00049464,192.89,192.83,2.5965]
[1735029771672,4.0651,192.89,192.84,2.5964]
[1735029773871,14.40459464,192.89,192.76,12.93539464]
[1735029774074,14.40459464,192.89,192.73,16.05459464]
[1735029774473,2.5965,192.85,192.79,2.597]
[1735029774674,2.5965,192.85,192.73,16.05459464]
[1735029775472,2.5965,192.85,192.8,2.597]
[1735029776373,2.5966,192.84,192.73,16.05459464]
[1735029776574,2.5966,192.84,192.79,2.5971]
[1735029776773,12.93539464,192.86,192.73,16.05459464]
[1735029777375,2.5968,192.82,192.78,2.5972]
[1735029779674,12.93539464,192.86,192.73,14.54369464]
[1735029780379,43.23536552,192.89,192.76,12.93539464]
[1735029780880,2.5964,192.85,192.81,2.5967]
[1735029782375,2.5965,192.84,192.8,2.597]
[1735029783375,10.87286515,192.84,192.8,2.597]
[1735029784881,2.5965,192.84,192.8,2.597]
[1735029788282,2.5966,192.83,192.78,2.5971]
[1735029788480,10.87296515,192.83,192.78,2.5971]
[1735029789488,8.27636515,192.81,192.78,2.5971]
[1735029802999,8.27636515,192.81,192.75,8.27636515]
[1735029803300,8.27636515,192.81,192.79,2.5971]
[1735029810803,8.27636515,192.81,192.78,2.5972]
[1735029811199,8.27636515,192.79,192.7,1.6183]
[1735029811404,8.27636515,192.79,192.77,2.5974]
[1735029812599,10.87326515,192.81,192.78,2.5973]
[1735029813604,8.27636515,192.81,192.78,2.5973]
[1735029818116,5.6195,192.82,192.78,2.5973]
[1735029818310,28.83077088,192.85,192.81,2.5968]
[1735029818510,37.10713603,192.85,192.77,8.27636515]
[1735029819111,37.10713603,192.85,192.7,1.6183]
[1735029819306,37.10713603,192.85,192.78,8.27636515]
[1735029819606,37.10713603,192.85,192.82,2.5967]
[1735029819808,8.27636515,192.85,192.82,2.5967]
[1735029820311,8.27636515,192.83,192.82,2.5967]
[1735029821607,1.6094,192.87,192.76,8.27636515]
[1735029821913,28.83077088,192.89,192.84,8.27636515]
[1735029822410,28.83077088,192.89,192.88,2.5959]
[1735029822811,8.27636515,192.9,192.73,56.83484537]
[1735029823011,8.27636515,192.86,192.78,8.27636515]
[1735029823210,8.27636515,192.82,192.73,56.83484537]
[1735029823413,1.75688625,192.93,192.75,8.27636515]
[1735029823612,8.27636515,192.83,192.81,2.5968]
[1735029824507,8.27636515,192.83,192.79,2.5971]
[1735029825612,8.27636515,192.81,192.74,2.5978]
[1735029825809,8.27636515,192.77,192.74,2.5978]
[1735029826012,8.27636515,192.77,192.69,48.18839367]
[1735029826203,8.27636515,192.77,192.72,2.5979]
[1735029826618,8.27636515,192.73,192.63,56.83484537]
[1735029826914,8.27636515,192.73,192.68,2.5986]
[1735029827511,8.27636515,192.73,192.69,2.5985]
[1735029828821,8.27636515,192.73,192.65,8.27636515]
[1735029829117,8.27636515,192.73,192.67,2.5986]
[1735029829509,8.27636515,192.73,192.65,8.27636515]
[1735029829510,8.27636515,192.73,192.62,1.6214]
[1735029829708,8.27636515,192.69,192.63,8.27636515]
[1735029830021,3.1341,192.76,192.62,1.6214]
[1735029830211,8.27636515,192.69,192.62,1.6214]
[1735029830920,3.1341,192.76,192.62,1.6214]
[1735029831115,3.1341,192.76,192.63,8.27636515]
[1735029831321,8.27636515,192.73,192.65,8.27636515]
[1735029832116,3.1341,192.76,192.67,8.27636515]
[1735029832316,11.41046515,192.76,192.69,8.27636515]
[1735029833423,11.41046515,192.76,192.72,2.598]
[1735029836523,3.1341,192.76,192.72,2.598]
[1735029836727,8.27636515,192.75,192.72,2.598]
[1735029840525,8.27636515,192.78,192.73,2.5978]
[1735029840723,8.27636515,192.78,192.71,8.27636515]
[1735029841519,1.6259,192.81,192.71,8.27636515]
[1735029841722,1.6259,192.81,192.62,1.6214]
[1735029841927,8.27636515,192.8,192.73,8.27636515]
[1735029842127,10.87336515,192.8,192.71,8.27636515]
[1735029842729,2.597,192.8,192.71,8.27636515]
[1735029843030,10.87336515,192.8,192.74,2.5977]
[1735029843723,2.597,192.8,192.71,8.27636515]
[1735029844028,10.87336515,192.8,192.75,2.5977]
[1735029845628,2.5967,192.83,192.77,2.5973]
[1735029845828,8.27636515,192.83,192.75,8.27636515]
[1735029846234,2.5963,192.86,192.8,2.5969]
[1735029846430,8.27636515,192.87,192.79,8.27636515]
[1735029847924,10.87236515,192.88,192.79,8.27636515]
[1735029848122,8.27636515,192.89,192.81,8.27636515]
[1735029849230,8.27636515,192.87,192.75,3.0315]
[1735029849634,8.27636515,192.87,192.79,8.27636515]
[1735029850019,8.27636515,192.87,192.81,2.5968]
[1735029850328,8.27636515,192.87,192.79,8.27636515]
[1735029851425,8.27636515,192.87,192.83,2.5966]
[1735029853528,8.27636515,192.85,192.76,8.27636515]
[1735029853830,8.27636515,192.83,192.76,8.27636515]
[1735029854031,8.27636515,192.83,192.8,2.597]
[1735029858931,10.87296515,192.83,192.78,2.5971]
[1735029861635,3.1878,192.92,192.8,2.597]
[1735029861836,8.27636515,192.85,192.8,2.597]
[1735029862433,10.87266515,192.85,192.8,2.597]
[1735029862738,3.1878,192.92,192.8,2.597]
[1735029862939,10.87256515,192.86,192.81,2.5968]
[1735029863940,2.5959,192.88,192.83,2.5965]
[1735029864338,8.27636515,192.86,192.83,2.5965]
[1735029865135,8.27636515,192.86,192.75,3.0315]
[1735029865341,2.5963,192.85,192.77,8.27636515]
[1735029866042,2.5963,192.85,192.8,2.5969]
[1735029866541,10.87266515,192.85,192.81,2.5967]
[1735029866943,10.87266515,192.85,192.79,8.27636515]
[1735029866944,8.27636515,192.83,192.8,2.597]
[1735029867340,8.27636515,192.83,192.76,8.27636515]
[1735029868544,10.87296515,192.83,192.76,8.27636515]
[1735029868840,28.83077088,192.91,192.8,8.27636515]
[1735029869045,10.87216515,192.89,192.84,2.5964]
[1735029870244,1.6127,192.92,192.82,8.27636515]
[1735029870443,9.88906515,192.92,192.84,8.27636515]
[1735029871150,9.88906515,192.92,192.86,2.5961]
[1735029871352,8.27636515,192.9,192.84,8.27636515]
[1735029872552,8.27636515,192.9,192.87,2.596]
[1735029873139,8.27636515,192.9,192.82,8.27636515]
[1735029873340,8.27636515,192.9,192.86,2.5961]
[1735029874451,8.27636515,192.88,192.84,2.5963]
[1735029878557,8.27636515,192.86,192.78,2.5972]
[1735029878756,8.27636515,192.83,192.76,8.27636515]
[1735029879857,8.27636515,192.83,192.78,2.5972]
[1735029880064,8.27636515,192.83,192.76,8.27636515]
[1735029880555,8.27636515,192.83,192.79,2.597]
[1735029880963,2.5963,192.85,192.79,2.597]
[1735029881165,8.27636515,192.83,192.79,2.597]
[1735029889369,4.1924,192.84,192.79,2.597]
[1735029890061,1.5263,192.86,192.8,8.27636515]
[1735029890258,1.5263,192.86,192.74,1.6015]
[1735029890259,31.42667088,192.89,192.84,8.27636515]
[1735029890658,7.20769272,192.89,192.88,2.5959]
[1735029891865,8.27636515,192.93,192.88,2.5959]
[1735029894072,5.7121,192.94,192.88,2.5959]
[1735029894269,8.27636515,192.93,192.88,2.5959]
[1735029896077,2.5948,192.96,192.88,8.27636515]
[1735029896277,8.27636515,192.95,192.88,8.27636515]
[1735029897570,8.27636515,192.95,192.92,2.5954]
[1735029897967,7.20769272,192.98,192.88,8.27636515]
[1735029898171,7.20769272,192.98,192.97,2.5947]
[1735029899177,15.48405787,192.98,192.93,2.5951]